Workbook

Sheet 在庫リスト
K2: 再発注品目を強調表示しますか? | L2: はい
B3: 再発注用 | C3: 在庫 ID | D3: 名前 | E3: 説明 | F3: 単価 | G3: 在庫の数量 | H3: 在庫の評価額 | I3: 再発注点 | J3: 再発注品目の調達期間 (日単位) | K3: 再発注品目の数量 | L3: 取り扱い中止?
B4: =IFERROR((在庫_リスト_表[[#This Row],[在庫の数量]]<=在庫_リスト_表[[#This Row],[再発注点]])*(在庫_リスト_表[[#This Row],[取り扱い中止?]]="")*valHighlight,0) -> 1 | C4: IN0001 | D4: 品目 1 | E4: 説明 1 | F4: ¥51.00 | G4: 25 | H4: =在庫_リスト_表[[#This Row],[単価]]*在庫_リスト_表[[#This Row],[在庫の数量]] -> ¥1,275.00 | I4: 29 | J4: 13 | K4: 50
B5: =IFERROR((在庫_リスト_表[[#This Row],[在庫の数量]]<=在庫_リスト_表[[#This Row],[再発注点]])*(在庫_リスト_表[[#This Row],[取り扱い中止?]]="")*valHighlight,0) -> 1 | C5: IN0002 | D5: 品目 2 | E5: 説明 2 | F5: ¥93.00 | G5: 132 | H5: =在庫_リスト_表[[#This Row],[単価]]*在庫_リスト_表[[#This Row],[在庫の数量]] -> ¥12,276.00 | I5: 231 | J5: 4 | K5: 50
B6: =IFERROR((在庫_リスト_表[[#This Row],[在庫の数量]]<=在庫_リスト_表[[#This Row],[再発注点]])*(在庫_リスト_表[[#This Row],[取り扱い中止?]]="")*valHighlight,0) -> 0 | C6: IN0003 | D6: 品目 3 | E6: 説明 3 | F6: ¥57.00 | G6: 151 | H6: =在庫_リスト_表[[#This Row],[単価]]*在庫_リスト_表[[#This Row],[在庫の数量]] -> ¥8,607.00 | I6: 114 | J6: 11 | K6: 150
B7: =IFERROR((在庫_リスト_表[[#This Row],[在庫の数量]]<=在庫_リスト_表[[#This Row],[再発注点]])*(在庫_リスト_表[[#This Row],[取り扱い中止?]]="")*valHighlight,0) -> 0 | C7: IN0004 | D7: 品目 4 | E7: 説明 4 | F7: ¥19.00 | G7: 186 | H7: =在庫_リスト_表[[#This Row],[単価]]*在庫_リスト_表[[#This Row],[在庫の数量]] -> ¥3,534.00 | I7: 158 | J7: 6 | K7: 50
B8: =IFERROR((在庫_リスト_表[[#This Row],[在庫の数量]]<=在庫_リスト_表[[#This Row],[再発注点]])*(在庫_リスト_表[[#This Row],[取り扱い中止?]]="")*valHighlight,0) -> 0 | C8: IN0005 | D8: 品目 5 | E8: 説明 5 | F8: ¥75.00 | G8: 62 | H8: =在庫_リスト_表[[#This Row],[単価]]*在庫_リスト_表[[#This Row],[在庫の数量]] -> ¥4,650.00 | I8: 39 | J8: 12 | K8: 50
B9: =IFERROR((在庫_リスト_表[[#This Row],[在庫の数量]]<=在庫_リスト_表[[#This Row],[再発注点]])*(在庫_リスト_表[[#This Row],[取り扱い中止?]]="")*valHighlight,0) -> 1 | C9: IN0006 | D9: 品目 6 | E9: 説明 6 | F9: ¥11.00 | G9: 5 | H9: =在庫_リスト_表[[#This Row],[単価]]*在庫_リスト_表[[#This Row],[在庫の数量]] -> ¥55.00 | I9: 9 | J9: 13 | K9: 150
B10: =IFERROR((在庫_リスト_表[[#This Row],[在庫の数量]]<=在庫_リスト_表[[#This Row],[再発注点]])*(在庫_リスト_表[[#This Row],[取り扱い中止?]]="")*valHighlight,0) -> 0 | C10: IN0007 | D10: 品目 7 | E10: 説明 7 | F10: ¥56.00 | G10: 58 | H10: =在庫_リスト_表[[#This Row],[単価]]*在庫_リスト_表[[#This Row],[在庫の数量]] -> ¥3,248.00 | I10: 109 | J10: 7 | K10: 100 | L10: はい
B11: =IFERROR((在庫_リスト_表[[#This Row],[在庫の数量]]<=在庫_リスト_表[[#This Row],[再発注点]])*(在庫_リスト_表[[#This Row],[取り扱い中止?]]="")*valHighlight,0) -> 1 | C11: IN0008 | D11: 品目 8 | E11: 説明 8 | F11: ¥38.00 | G11: 101 | H11: =在庫_リスト_表[[#This Row],[単価]]*在庫_リスト_表[[#This Row],[在庫の数量]] -> ¥3,838.00 | I11: 162 | J11: 3 | K11: 100
B12: =IFERROR((在庫_リスト_表[[#This Row],[在庫の数量]]<=在庫_リスト_表[[#This Row],[再発注点]])*(在庫_リスト_表[[#This Row],[取り扱い中止?]]="")*valHighlight,0) -> 0 | C12: IN0009 | D12: 品目 9 | E12: 説明 9 | F12: ¥59.00 | G12: 122 | H12: =在庫_リスト_表[[#This Row],[単価]]*在庫_リスト_表[[#This Row],[在庫の数量]] -> ¥7,198.00 | I12: 82 | J12: 3 | K12: 150
B13: =IFERROR((在庫_リスト_表[[#This Row],[在庫の数量]]<=在庫_リスト_表[[#This Row],[再発注点]])*(在庫_リスト_表[[#This Row],[取り扱い中止?]]="")*valHighlight,0) -> 1 | C13: IN0010 | D13: 品目 10 | E13: 説明 10 | F13: ¥50.00 | G13: 175 | H13: =在庫_リスト_表[[#This Row],[単価]]*在庫_リスト_表[[#This Row],[在庫の数量]] -> ¥8,750.00 | I13: 283 | J13: 8 | K13: 150
B14: =IFERROR((在庫_リスト_表[[#This Row],[在庫の数量]]<=在庫_リスト_表[[#This Row],[再発注点]])*(在庫_リスト_表[[#This Row],[取り扱い中止?]]="")*valHighlight,0) -> 1 | C14: IN0011 | D14: 品目 11 | E14: 説明 11 | F14: ¥59.00 | G14: 176 | H14: =在庫_リスト_表[[#This Row],[単価]]*在庫_リスト_表[[#This Row],[在庫の数量]] -> ¥10,384.00 | I14: 229 | J14: 1 | K14: 100
B15: =IFERROR((在庫_リスト_表[[#This Row],[在庫の数量]]<=在庫_リスト_表[[#This Row],[再発注点]])*(在庫_リスト_表[[#This Row],[取り扱い中止?]]="")*valHighlight,0) -> 1 | C15: IN0012 | D15: 品目 12 | E15: 説明 12 | F15: ¥18.00 | G15: 22 | H15: =在庫_リスト_表[[#This Row],[単価]]*在庫_リスト_表[[#This Row],[在庫の数量]] -> ¥396.00 | I15: 36 | J15: 12 | K15: 50
B16: =IFERROR((在庫_リスト_表[[#This Row],[在庫の数量]]<=在庫_リスト_表[[#This Row],[再発注点]])*(在庫_リスト_表[[#This Row],[取り扱い中止?]]="")*valHighlight,0) -> 1 | C16: IN0013 | D16: 品目 13 | E16: 説明 13 | F16: ¥26.00 | G16: 72 | H16: =在庫_リスト_表[[#This Row],[単価]]*在庫_リスト_表[[#This Row],[在庫の数量]] -> ¥1,872.00 | I16: 102 | J16: 9 | K16: 100
B17: =IFERROR((在庫_リスト_表[[#This Row],[在庫の数量]]<=在庫_リスト_表[[#This Row],[再発注点]])*(在庫_リスト_表[[#This Row],[取り扱い中止?]]="")*valHighlight,0) -> 1 | C17: IN0014 | D17: 品目 14 | E17: 説明 14 | F17: ¥42.00 | G17: 62 | H17: =在庫_リスト_表[[#This Row],[単価]]*在庫_リスト_表[[#This Row],[在庫の数量]] -> ¥2,604.00 | I17: 83 | J17: 2 | K17: 100
B18: =IFERROR((在庫_リスト_表[[#This Row],[在庫の数量]]<=在庫_リスト_表[[#This Row],[再発注点]])*(在庫_リスト_表[[#This Row],[取り扱い中止?]]="")*valHighlight,0) -> 0 | C18: IN0015 | D18: 品目 15 | E18: 説明 15 | F18: ¥32.00 | G18: 46 | H18: =在庫_リスト_表[[#This Row],[単価]]*在庫_リスト_表[[#This Row],[在庫の数量]] -> ¥1,472.00 | I18: 23 | J18: 15 | K18: 50
B19: =IFERROR((在庫_リスト_表[[#This Row],[在庫の数量]]<=在庫_リスト_表[[#This Row],[再発注点]])*(在庫_リスト_表[[#This Row],[取り扱い中止?]]="")*valHighlight,0) -> 1 | C19: IN0016 | D19: 品目 16 | E19: 説明 16 | F19: ¥90.00 | G19: 96 | H19: =在庫_リスト_表[[#This Row],[単価]]*在庫_リスト_表[[#This Row],[在庫の数量]] -> ¥8,640.00 | I19: 180 | J19: 3 | K19: 50
B20: =IFERROR((在庫_リスト_表[[#This Row],[在庫の数量]]<=在庫_リスト_表[[#This Row],[再発注点]])*(在庫_リスト_表[[#This Row],[取り扱い中止?]]="")*valHighlight,0) -> 0 | C20: IN0017 | D20: 品目 17 | E20: 説明 17 | F20: ¥97.00 | G20: 57 | H20: =在庫_リスト_表[[#This Row],[単価]]*在庫_リスト_表[[#This Row],[在庫の数量]] -> ¥5,529.00 | I20: 98 | J20: 12 | K20: 50 | L20: はい
B21: =IFERROR((在庫_リスト_表[[#This Row],[在庫の数量]]<=在庫_リスト_表[[#This Row],[再発注点]])*(在庫_リスト_表[[#This Row],[取り扱い中止?]]="")*valHighlight,0) -> 1 | C21: IN0018 | D21: 品目 18 | E21: 説明 18 | F21: ¥12.00 | G21: 6 | H21: =在庫_リスト_表[[#This Row],[単価]]*在庫_リスト_表[[#This Row],[在庫の数量]] -> ¥72.00 | I21: 7 | J21: 13 | K21: 50
B22: =IFERROR((在庫_リスト_表[[#This Row],[在庫の数量]]<=在庫_リスト_表[[#This Row],[再発注点]])*(在庫_リスト_表[[#This Row],[取り扱い中止?]]="")*valHighlight,0) -> 1 | C22: IN0019 | D22: 品目 19 | E22: 説明 19 | F22: ¥82.00 | G22: 143 | H22: =在庫_リスト_表[[#This Row],[単価]]*在庫_リスト_表[[#This Row],[在庫の数量]] -> ¥11,726.00 | I22: 164 | J22: 12 | K22: 150
B23: =IFERROR((在庫_リスト_表[[#This Row],[在庫の数量]]<=在庫_リスト_表[[#This Row],[再発注点]])*(在庫_リスト_表[[#This Row],[取り扱い中止?]]="")*valHighlight,0) -> 0 | C23: IN0020 | D23: 品目 20 | E23: 説明 20 | F23: ¥16.00 | G23: 124 | H23: =在庫_リスト_表[[#This Row],[単価]]*在庫_リスト_表[[#This Row],[在庫の数量]] -> ¥1,984.00 | I23: 113 | J23: 14 | K23: 50
B24: =IFERROR((在庫_リスト_表[[#This Row],[在庫の数量]]<=在庫_リスト_表[[#This Row],[再発注点]])*(在庫_リスト_表[[#This Row],[取り扱い中止?]]="")*valHighlight,0) -> 0 | C24: IN0021 | D24: 品目 21 | E24: 説明 21 | F24: ¥19.00 | G24: 112 | H24: =在庫_リスト_表[[#This Row],[単価]]*在庫_リスト_表[[#This Row],[在庫の数量]] -> ¥2,128.00 | I24: 75 | J24: 11 | K24: 50
B25: =IFERROR((在庫_リスト_表[[#This Row],[在庫の数量]]<=在庫_リスト_表[[#This Row],[再発注点]])*(在庫_リスト_表[[#This Row],[取り扱い中止?]]="")*valHighlight,0) -> 0 | C25: IN0022 | D25: 品目 22 | E25: 説明 22 | F25: ¥24.00 | G25: 182 | H25: =在庫_リスト_表[[#This Row],[単価]]*在庫_リスト_表[[#This Row],[在庫の数量]] -> ¥4,368.00 | I25: 132 | J25: 15 | K25: 150
B26: =IFERROR((在庫_リスト_表[[#This Row],[在庫の数量]]<=在庫_リスト_表[[#This Row],[再発注点]])*(在庫_リスト_表[[#This Row],[取り扱い中止?]]="")*valHighlight,0) -> 0 | C26: IN0023 | D26: 品目 23 | E26: 説明 23 | F26: ¥29.00 | G26: 106 | H26: =在庫_リスト_表[[#This Row],[単価]]*在庫_リスト_表[[#This Row],[在庫の数量]] -> ¥3,074.00 | I26: 142 | J26: 1 | K26: 150 | L26: はい
B27: =IFERROR((在庫_リスト_表[[#This Row],[在庫の数量]]<=在庫_リスト_表[[#This Row],[再発注点]])*(在庫_リスト_表[[#This Row],[取り扱い中止?]]="")*valHighlight,0) -> 0 | C27: IN0024 | D27: 品目 24 | E27: 説明 24 | F27: ¥75.00 | G27: 173 | H27: =在庫_リスト_表[[#This Row],[単価]]*在庫_リスト_表[[#This Row],[在庫の数量]] -> ¥12,975.00 | I27: 127 | J27: 9 | K27: 100
B28: =IFERROR((在庫_リスト_表[[#This Row],[在庫の数量]]<=在庫_リスト_表[[#This Row],[再発注点]])*(在庫_リスト_表[[#This Row],[取り扱い中止?]]="")*valHighlight,0) -> 0 | C28: IN0025 | D28: 品目 25 | E28: 説明 25 | F28: ¥14.00 | G28: 28 | H28: =在庫_リスト_表[[#This Row],[単価]]*在庫_リスト_表[[#This Row],[在庫の数量]] -> ¥392.00 | I28: 21 | J28: 8 | K28: 50
